Cogmind - Beta 9.4 @@@ ROGUE MODE // 2020.03.13 @ 17:26:24 Player: Valguris Result: Destroyed by D-53 Grenadier with Mini Grenade Launcher Performance ------------- Evolutions (0) 0 Regions Visited (2) 400 Robots Destroyed (27) 135 Value Destroyed (645) 645 Prototype IDs (0) 0 Alien Tech Used (0) 0 Bonus (0) 0 TOTAL SCORE: 1180 Bonus ------- None Cogmind --------- Core Integrity 0/250 Matter 264/300 Energy 81/100 System Corruption 0% Temperature Cool (0) Movement Core (50) Location -10/Mines Parts ------- > --- POWER (1) -------- (None) > --- PROPULSION (2) --- Light Treads Light Treads > --- UTILITY (2) ------ (None) > --- WEAPON (2) ------- (None) > --- INVENTORY (4) ---- Light Ion Engine EM Pulse Gun Datajack Mining Laser Peak State ------------ > --- POWER ------------ Light Ion Engine > --- PROPULSION ------- Light Treads Light Treads > --- UTILITY ---------- Large Storage Unit High-capacity Storage Unit > --- WEAPON ----------- Light Cannon Light Cannon > --- INVENTORY -------- Light Ion Engine Light Treads Light Treads Heat Sink EM Pulse Gun Medium Laser Rocket Launcher Datajack Mining Laser [Rating: 8] Favorites ----------- Power Light Ion Engine Engine Light Ion Engine Propulsion Light Treads Treads Light Treads Utility Small Storage Unit Storage Small Storage Unit Processor Signal Interpreter Weapon Light Cannon Energy Gun EM Pulse Gun Ballistic Gun Light Assault Rifle Ballistic Cannon Light Cannon Build | -11 -10 -10 ------- Run | Scr Mat Min Slots Evolved . | . . . Power . | . . . Propulsion . | . . . Utility . | . . . Weapon . | . . . Parts Attached 15 | 6 5 4 Power 1 | 1 . . Engine 1 | 1 . . Core . | . . . Reactor . | . . . Propulsion 4 | 2 . 2 Treads 4 | 2 . 2 Leg . | . . . Wheel . | . . . Hover . | . . . Flight . | . . . Utility 6 | 1 3 2 Device . | . . . Storage 5 | 1 2 2 Processor 1 | . 1 . Hackware . | . . . Protection . | . . . Artifact . | . . . Weapon 4 | 2 2 . Energy Gun 1 | 1 . . Energy Cannon . | . . . Ballistic Gun 1 | 1 . . Ballistic Cannon 2 | . 2 . Launcher . | . . . Special Weapon . | . . . Impact Weapon . | . . . Slashing Weapon . | . . . Piercing Weapon . | . . . Special Melee Weapon . | . . . Unidentified Prototypes . | . . . Parts Lost 5 | . . 5 Power 1 | . . 1 Propulsion 2 | . . 2 Utility . | . . . Weapon 2 | . . 2 Highest Loss Streak 5 | . . 5 Average Slot Usage (%) 98 | . 98 99 Engine 13 | . 14 13 Treads 28 | . 28 28 Storage 27 | . 26 27 Energy Gun 5 | . 10 . Ballistic Cannon 21 | . 17 27 Naked Turns . | . . . Heaviest Build 57 | 10 17 57 Greatest Support 40 | 40 40 40 Greatest Overweight (x) 1 | 1 . 1 Average Overweight (x) . | . . . Largest Inventory Capacity 18 | 6 8 18 Average Capacity 11 | 5 7 17 Most Carried 9 | 6 8 9 Average Carried 7 | 4 7 8 Final Capacity 8 | 6 8 4 Final Carried 8 | 6 8 4 Class Distribution -------------------- 100% | Mutant Dominant Class ---------------- Mutant | -10/Materials Mutant | -10/Mines Resources | -11 -10 -10 ----------- Run | Scr Mat Min Matter Collected 802 | 265 355 182 Remotely . | . . . Salvage Created 784 | 70 561 153 Parts 42 | 1 32 9 Haulers Intercepted 2 | . 2 . Recyclers Shooed . | . . . Parts Field Recycled . | . . . Retrieved Matter . | . . . Parts Self-Destructed . | . . . Prevented . | . . . Kills | -11 -10 -10 ------- Run | Scr Mat Min Combat Hostiles Destroyed 16 | . 9 7 Guns 1 | . 1 . Cannons 15 | . 8 7 Classes Destroyed 8 | 1 5 2 Builder 1 | . 1 . Tunneler 1 | . . 1 Hauler 2 | . 2 . Recycler 3 | 1 2 . Operator 1 | . 1 . Watcher 3 | . 3 . Swarmer 3 | . . 3 Grunt 13 | . 9 4 Best Kill Streak 6 | 1 6 3 Combat Bots Only 3 | . 2 3 Max Kills in Single Turn 2 | 1 2 1 Gunslinging . | . . . Exploded . | . . . Melee . | . . . Uniques/NPCs Destroyed . | . . . Combat | -11 -10 -10 -------- Run | Scr Mat Min Damage Taken 1057 | . 232 825 Core 266 | . 48 218 Absorbed by Shields . | . . . Core Remaining (%) 100 | 100 . . Volleys Fired 85 | 5 58 22 Largest 2 | 2 2 2 Hottest 75 | 60 75 70 Shots Fired 146 | 10 92 44 Gun 19 | 10 9 . Cannon 127 | . 83 44 Launcher . | . . . Special . | . . . Kinetic 132 | 5 83 44 Thermal . | . . . Explosive . | . . . Electromagnetic 14 | 5 9 . Robot Hit Streak 10 | 8 10 9 Robot Miss Streak 3 | 2 3 3 Penetration Max . | . . . Secondary Targets . | . . . Shots Hit Robots 100 | 8 61 31 Core Hits 34 | 1 22 11 Critical Hits 2 | 1 . 1 Critical Kills . | . . . Critical Parts Destroyed 2 | 1 . 1 Melee Attacks . | . . . Impact . | . . . Slashing . | . . . Piercing . | . . . Sneak Attacks . | . . . Combat Hostiles . | . . . Follow-up Attacks . | . . . Damage Inflicted 1733 | 86 1069 578 Guns 183 | 86 97 . Cannons 1550 | . 972 578 Explosions . | . . . Melee . | . . . Ramming . | . . . Kinetic 1580 | 30 972 578 Thermal . | . . . Explosive . | . . . Electromagnetic 153 | 56 97 . Impact . | . . . Slashing . | . . . Piercing . | . . . Highest Corruption . | . . . Average Corruption . | . . . Corruption Purged . | . . . Overload Shots . | . . . Overflow Damage 50 | . 48 2 Projectiles 50 | . 48 2 Explosions . | . . . Melee . | . . . Knockbacks 20 | . 13 7 Impact . | . . . Kinetic 19 | . 12 7 Secondary 1 | . 1 . Self-Inflicted Damage . | . . . Shots . | . . . Rammed . | . . . Targets Rammed . | . . . Kicked . | . . . Crushed . | . . . Highest Temperature 111 | 20 72 111 Average Temperature 25 | 13 21 34 Received Heat Transfer 192 | . 117 75 Siege Activations . | . . . Robots Corrupted . | . . . Combat Hostiles . | . . . Parts Fried . | . . . Impact Corruptions . | . . . Robots Melted . | . . . Combat Hostiles . | . . . Parts Melted . | . . . Heat Transferred . | . . . Parts Sabotaged . | . . . Parts Stolen . | . . . Parts Stripped . | . . . Power Chain Reactions . | . . . Missiles Intercepted . | . . . Alert | -11 -10 -10 ------- Run | Scr Mat Min Peak Influence 236 | 5 227 236 Average Influence 83 | 1 76 102 Maximum Alert Level 1 | . 1 1 Low Security (%) 93 | 100 93 91 Level 1 6 | . 6 8 Level 2 . | . . . Level 3 . | . . . Level 4 . | . . . Level 5 . | . . . High Security . | . . . Max Security . | . . . Squads Dispatched 4 | . 4 . Investigation 1 | . 1 . Extermination . | . . . Reinforcement 3 | . 3 . Assault . | . . . Garrison . | . . . Intercept . | . . . Construction Impeded . | . . . Haulers Reinforced . | . . . Stealth | -11 -10 -10 --------- Run | Scr Mat Min Distress Signals . | . . . Communications Jammed . | . . . Distress Signals . | . . . Times Spotted 30 | . 22 8 Peak Tracking Total 3 | . 3 3 Tactical Retreats 1 | . 1 . Traps | -11 -10 -10 ------- Run | Scr Mat Min Traps Triggered 1 | . 1 . Indirectly . | . . . Trap Hack Attempts . | . . . Triggered . | . . . Disarmed . | . . . Reprogrammed . | . . . Reused . | . . . Traps Extracted . | . . . Installed . | . . . Triggered . | . . . Machines | -11 -10 -10 ---------- Run | Scr Mat Min Machines Disabled 1 | . 1 . Max in Single Turn 1 | . 1 . Machines Sabotaged . | . . . Garrisons Compromised . | . . . Overloaded Fab Kills . | . . . Fab Network Shutdowns . | . . . Hacking | -11 -10 -10 --------- Run | Scr Mat Min Machines Accessed 4 | . 4 . Terminals 3 | . 3 . Fabricators . | . . . Repair Stations . | . . . Recycling Units 1 | . 1 . Scanalyzers . | . . . Garrison Access . | . . . Total Hacks 10 | . 10 . Successful 3 | . 3 . Failed 7 | . 7 . Catastrophic 1 | . 1 . Database Lockouts . | . . . Manual 10 | . 10 . Terminals 9 | . 9 . Fabricators . | . . . Repair Stations . | . . . Recycling Units 1 | . 1 . Scanalyzers . | . . . Garrison Access . | . . . Terminal Hacks 1 | . 1 . Robot Analysis 1 | . 1 . Fabricator Hacks . | . . . Repair Station Hacks . | . . . Recycling Unit Hacks . | . . . Scanalyzer . | . . . Garrison Access Hacks . | . . . Unauthorized Hacks 6 | . 6 . Terminals 1 | . 1 . Botnet 1 | . 1 . Fabricators . | . . . Repair Stations . | . . . Recycling Units 1 | . 1 . Tunnel 1 | . 1 . Scanalyzers . | . . . Garrison Access . | . . . Data Cores Recovered . | . . . Used . | . . . Hacking Detections 3 | . 3 . Full Trace Events . | . . . Feedback Events . | . . . Feedback Blocked . | . . . Robot Schematics Acquired . | . . . Robots Built . | . . . Matter . | . . . Time . | . . . Total Robot Build Rating . | . . . Part Schematics Acquired . | . . . Parts Built . | . . . Matter . | . . . Time . | . . . Total Part Build Rating . | . . . Parts Repaired . | . . . Time . | . . . Parts Recycled . | . . . Recycled Matter . | . . . Retrieved Matter . | . . . Retrieved Components . | . . . Parts Scanalyzed . | . . . Part Schematics Acquired . | . . . Parts Damaged . | . . . Bothacking | -11 -10 -10 ------------ Run | Scr Mat Min Used RIF Installer . | . . . Robots Hacked . | . . . Non-combat . | . . . Combat . | . . . Robot Hacks Applied . | . . . Relay Couplers Released . | . . . Robots Rewired . | . . . Allies Hacked . | . . . Hacks Repelled . | . . . Allies | -11 -10 -10 -------- Run | Scr Mat Min Total Allies . | . . . Largest Group . | . . . Highest-Rated Group . | . . . Highest-Rated Ally . | . . . Total Orders . | . . . Ally Attacks . | . . . Total Damage . | . . . Kills . | . . . Allies Corrupted . | . . . Allies Melted . | . . . Intel | -11 -10 -10 ------- Run | Scr Mat Min Robot Analysis Total 1 | . 1 . Derelict Logs Recovered 2 | . . 2 Drone Launches . | . . . Drone Recoveries . | . . . Exploration | -11 -10 -10 ------------- Run | Scr Mat Min Turns Passed 2010 | 98 1102 810 Spaces Moved 982 | 45 528 409 Core 6 | 2 . 4 Treads 976 | 43 528 405 Legs . | . . . Wheels . | . . . Hover . | . . . Flight . | . . . Fastest Speed 50 | 50 160 50 Average Speed 167 | 156 160 178 Slowest Speed 180 | 160 160 180 Overloaded Moves . | . . . Propulsion Burnouts . | . . . Robots Hopped . | . . . Cave-ins Triggered . | . . . Exploration Rate (%) 48 | 4 73 68 Regions Visited 2 Branch Regions 1 Pre-discovered Areas 2 | . 1 1 Known Exits Taken 1 | . 1 . Unknown Exits Taken 1 | 1 . . Scrap Searched 1 | . . 1 Spaces Dug . | . . . Terrain Destroyed . | . . . Melee . | . . . Projectile . | . . . AOE . | . . . Actions | -11 -10 -10 --------- Run | Scr Mat Min Total 1204 | 61 695 448 Wait 94 | . 87 7 Move 980 | 44 527 409 Hop . | . . . Pick Up 17 | 6 9 2 Fast Attach 10 | 6 4 . Attach 2 | . . 2 Detach 2 | . 2 . Swap 3 | . 1 2 Drop 11 | . 7 4 Fire 85 | 5 58 22 Melee . | . . . Ram . | . . . Kick . | . . . Crush . | . . . Escape Stasis . | . . . Rewire . | . . . Trap . | . . . Miscellaneous . | . . . Route ------- -11/Scrapyard -10/Materials (discovered 3 exits: [*Mat x2] / *Min) -10/Mines (discovered 1 exit: [*Mat]) History --------- Turn | Location | Event 26 | -11/Scrapyard | Discovered new exit (range 15) 99 | -11/Scrapyard | Entered Materials 229 | -10/Materials | Discovered new exit (range 16) 312 | -10/Materials | Build established: Mutant 546 | -10/Materials | Discovered new exit (range 4) 930 | -10/Materials | Discovered new exit (range 11) 1125 | -10/Materials | Identified exit to Mines 1201 | -10/Materials | Entered Mines 1332 | -10/Mines | Learned Materials stockpile data 1333 | -10/Mines | Discovered new exit (range 4) 1396 | -10/Mines | Received a Rocket Launcher from a helpful Derelict 1889 | -10/Mines | Assembled infested the area 1900 | -10/Mines | Learned location of Mines (-9) 2001 | -10/Mines | Core integrity fell below 50% 2005 | -10/Mines | Core integrity fell below 20% 2011 | -10/Mines | Destroyed by D-53 Grenadier with Mini Grenade Launcher Last Messages --------------- 01900_ Acquired derelict log, extracted data. World map updated: -9/Mines. 01963_ T-07 Excavator destroyed. 01966_ Acquired 10 matter. 01994_ C-30 ARC bursts open, deploying its payload. 01994_ D-53 Grenadier unfolds itself. 01997_ D-53 Grenadier knocked back. 02001_ Lgt. Treads destroyed. 02002_ The unstable cave ceiling collapses. 02003_ D-53 Grenadier knocked back. 02004_ The unstable cave ceiling collapses. 02005_ Lgt. Cannon destroyed. 02005_ Lgt. Ion Engine destroyed. 02006_ The unstable cave ceiling collapses. 02007_ Lgt. Treads destroyed. 02007_ Lgt. Cannon destroyed. 02008_ The unstable cave ceiling collapses. 02008_ Dropped Hcp. Storage Unit. 02009_ Dropped Lrg. Storage Unit. 02010_ The unstable cave ceiling collapses. Map ----- +----------------------------------------------------+ | ??????????????????????????????????????# ##?????? | | ??????????????????????????????????????# #?????? | | ??????????????????????????????????????### #?????? | | ????????????????????????????????????????# #?????? | | ???????????????????????????????????????## ##????? | | ???????????????????????????????????????# ##???? | | ??????????????????????????????? ??????# ##??? | | ??????????????????????????????# ?????# #??? | | ??????????????????????????????# "????## #??? | | ???????????????????????????????# % ????## ##?? | | ????????????????????##???????????# ##??## ##? | | ????????????????? ## #???????????# *"#### #? | | ?????????????? ##?????????# %! #? | | ????????????? ##??###???# ! ##? | | ???????????? t ### ???# ### #?? | | ???????????? ?? ?????# #?? | | ???????????? ???????????## ##?? | | ????????????? ?????????????# "#??? | | ??????????????? ??????????????# ##??? | | ???????????????? d #??????????????# #???? | | ?????????????????# ???????######### #???? | | ?????????????????## ###?????# #???? | | ????????????????## #?????#!##########???? | | ????????????????# #?????# #????????????? | | ?????????????# ## ] #######|#????????????? | | ???????# d% !!! @ =#????????????? | | ?????????????#### [ #########????????????? | | ????????????????# #????????????????????? | | ????????????????## ##????????????????????? | | ?????????????????## ###?????????????????????? | | ??????????????????#######???????????????????????? | | | | | | | | | | | | | | | | | | | | | | | | | | | | | | | | | | | | | | | +----------------------------------------------------+ Best States ------------- Heat Dissipation 25 Energy Generation 10 Energy Capacity 125 Matter Stores 300 Matter Capacity 300 Sight Range 16 Terrain Scan Density 10 Evasion (%) 40 Recoil Reduction 2 Item Schematics ----------------- None Robot Schematics ------------------ None Fabricated ------------ Nothing Alien Tech Used ----------------- None Achievements -------------- None Challenges ------------ None Game ------ Seed TacticalVortexCleaver Manual? 0 Play Time 00:17:46 Cumulative 1069.4 hours Start 2020.03.13 @ 17:08:23 End 2020.03.13 @ 17:26:24 Sessions 1 Manual Loads 0 Difficulty Rogue Special Mode None Game No. 379 Rogue 379 Adventurer 0 Explorer 0 Win Type - Total 249 Types 214/6/11/3/3/2/10 Lore% 98 Gallery% 100 Achievement% 92 Wizard Run 0 Options --------- ASCII 0 Keyboard 0 Movement Mouse Keybinds 0 Fullscreen 1 Font 18/Terminus Map View 76x50 Tactical HUD 1 Map Filters NONE Filters NONE Steam 1 RUN: 230c0a67-c686-4499-bb84-974334a06d8d